[Event "TUR-ch U13-18 Open 2023"]
[Site "Antalya"]
[Date "2023.01.23"]
[Round "2"]
[White "Karaca, Yigit"]
[Black "Domurcak, Doruk"]
[Result "0-1"]
[ECO "C65"]
[WhiteElo "1933"]
[BlackElo "1378"]
[Annotator "TA"]
[PlyCount "182"]
[EventDate "2023.01.17"]
[EventType "swiss"]
[EventCountry "TUR"]
[SourceTitle "playchess.com"]
[Source "ChessBase"]
[SourceQuality "1"]
[TimeControl "5400+30"]

{[%evp 9,182,13,16,8,31,-2,-2,-29,16,14,20,0,0,0,23,0,0,0,-8,-20,-27,-24,-17,-58,-65,-71,-71,-86,-75,-71,-71,-55,-75,-69,0,-110,-110,-110,-99,-94,-96,-96,0,0,0,-84,0,-131,-8,-11,0,0,6,0,0,0,42,35,79,27,69,52,81,76,127,127,127,127,200,177,216,0,143,-111,-111,-162,-173,-169,-44,-64,0,0,-7,-80,14,-35,-33,-266,0,-207,-199,-197,-192,-184,-157,-524,-504,-584,-220,-230,-225,-213,-172,-221,-206,-218,-206,-625,-627,-577,-625,-642,-599,-496,-369,-368,-368,-473,-368,-368,-368,-1477,-1456,-1312,-1292,-1454,-1412,-1323,-1314,-1760,-1764,-2102,-1908,-1143,-1120,-29972,-29975,-29974,-29971,-29981,-29979,-29978,-29979,-29982,-29983,-29982,-29982,-29982,-29983,-29983,-29984,-29979,-29980,-29987,-29988,-29988,-29986,-29990,-29989,-29990,-29989,-29989,-29989,-29989,-29990,-29992,-29990,-29990,-29991,-29991,-29991,-29991,-29989,-29989,-29989]} 1. e4 {[%emt 0:01:00]} e5 {[%emt 0:01:00]} 2. Nf3 {[%emt 0:00:30]} Nc6 {[%emt 0:00:30]} 3. Bb5 {[%emt 0:00:00]} Nf6 {[%emt 0:00:30]} 4. Bxc6 {[%emt 0:00:00]} dxc6 {[%emt 0:00:30]} 5. d3 {[%emt 0:00:00]} Bd6 {[%emt 0:02:30]} 6. Nbd2 {[%emt 0:03:00][%cal Bb1d2,Bd2f1,Bf1g3][%mdl 32] [#] C65: Ruy Lopez: Berlin Defence (3...Nf6), unusual lines and 4 0-0 Bc5.} h6 $146 {[%emt 0:02:30]} ({Predecessor:} 6... Bg4 7. h3 Bh5 8. Nc4 Nd7 9. Ne3 Nf8 10. Nf5 Ne6 11. g4 Bg6 12. Be3 c5 13. c3 Qd7 {0-1 Nakamura,H (2736)-Carlsen,M (2863) Carlsen Tour Final rapid 2020 (2.26)}) 7. Nf1 {[%emt 0:00:30]} Be6 {[%emt 0:00:30]} 8. Ng3 {[%emt 0:00:30] The position is equal.} O-O {[%emt 0:05:30]} 9. O-O {[%emt 0:00:30]} Nd7 {[%emt 0:01:30]} 10. h3 {[%emt 0:04:30]} Re8 {[%emt 0:04:30]} 11. Nh2 {[%emt 0:02:30][%cal Bf3h2,Bh2g4,Bg4e3,Be3d1,Bd1c3][%mdl 32]} Nf8 {[%emt 0:03:30]} 12. Nf5 {[%emt 0:05:30]} Bxf5 {[%emt 0:01:30]} 13. exf5 {[%emt 0:00:30]} e4 {[%emt 0:00:30]} 14. Ng4 {[%emt 0:00:30][%cal Of5f6] Dodges Qf6} h5 {[%emt 0:07:30]} 15. Ne3 {[%emt 0:01:30]} Qh4 {[%emt 0:00:30]} 16. dxe4 {[%emt 0:01:30]} Rxe4 {[%emt 0:00:30]} 17. Qf3 {[%emt 0:12:30]} Nh7 {[%emt 0:04:30] Black has more active pieces. The white rooks are badly placed. White is weak on the dark squares} 18. Nd1 {[%emt 0:01:30]} Rae8 {[%emt 0:00:30]} 19. Nc3 {[%emt 0:00:30]} R4e7 {[%emt 0:14:30]} 20. Bd2 {[%emt 0:17:30]} Ng5 $40 {[%emt 0:04:30][%mdl 128] Black goes for the king.} 21. Qd3 {[%emt 0:06:30]} f6 {[%emt 0:07:30]} (21... Rd8 $15 22. Kh1 Ne4 23. Nxe4 Qxe4) 22. Bxg5 {[%emt 0:16:30]} (22. Rae1 $1 $11) 22... Qxg5 $17 {[%emt 0:03:30]} 23. Rad1 {[%emt 0:01:30]} h4 {[%emt 0:01:30] ...Qf4 would be deadly.} ({And not} 23... Qf4 24. g3 Qb4 25. Kg2 $15) 24. Qc4+ {[%emt 0:00:30]} Kf8 {[%emt 0:01:30]} 25. Qg4 {[%emt 0:06:12]} Kf7 {[%emt 0:03:30]} (25... Re5 {simplifies} 26. Qxg5 fxg5 27. f3 Rc5) 26. Qc4+ $1 {[%emt 0:01:48]} Kf8 {[%emt 0:00:30]} 27. Qg4 {[%emt 0:00:30]} Kf7 {[%emt 0:00:30]} (27... Re5 $17 28. Qxg5 fxg5) 28. f3 {[%emt 0:05:12]} (28. Qc4+ $1 $11 Kf8) 28... Qxg4 {[%emt 0:04:30]} (28... Qe3+ $17 29. Kh1 Qf4 30. Qxf4 Bxf4) 29. hxg4 $11 {[%emt 0:00:11]} Be5 {[%emt 0:00:30]} 30. Ne4 {[%emt 0:02:29]} Bg3 {[%emt 0:04:32]} 31. Rd3 {[%emt 0:02:20]} b6 {[%emt 0:02:42]} 32. Rfd1 {[%emt 0:00:24]} Bf4 {[%emt 0:01:15]} 33. Kf2 {[%emt 0:01:23]} Rh8 {[%emt 0:00:42]} 34. Rh1 {[%emt 0:02:31]} (34. b4 $16) 34... Rh6 {[%emt 0:00:41]} 35. Rd8 {[%emt 0:02:01]} c5 {[%emt 0:03:32]} 36. Rhd1 {[%emt 0:00:36]} h3 {[%emt 0:01:09]} (36... g6 $142) 37. g3 $16 {[%emt 0:00:30]} Be5 {[%emt 0:00:12]} 38. c3 {[%emt 0:00:00]} Re8 {[%emt 0:00:56]} (38... g6 $16 {was worth a try.} 39. fxg6+ Kxg6) 39. R1d7+ $1 $18 {[%emt 0:01:01]} Re7 {[%emt 0:00:09] aiming for ...h2.} 40. Rd1 {[%emt 0:00:45]} Re8 $1 {[%emt 0:00:30] Hoping for ...Rxd8.} 41. Kg1 $2 {[%emt 0:00:00][%mdl 8192]} (41. R8d2 $16 {keeps the pressure on.}) 41... Bd4+ $1 $17 {[%emt 0:01:28]} 42. R1xd4 {[%emt 0:00:00]} (42. R8xd4 $17 {was called for.} cxd4 43. Rxd4) 42... cxd4 $19 {[%emt 0:01:34]} 43. Rxd4 $17 {[%emt 0:00:22][%mdl 4096] Endgame [#] KRR-KRN} g6 {[%emt 0:00:30]} (43... h2+ $1 $19 44. Kh1 Ke7) 44. fxg6+ {[%emt 0:00:30]} Rxg6 {[%emt 0:00:30]} ({Better is} 44... Kxg6 $15 45. Kh2 Rf8) 45. Kh2 $11 {[%emt 0:00:30]} Ke6 {[%emt 0:00:30]} 46. Nf2 {[%emt 0:00:30]} (46. b4 $11 {remains equal.}) 46... f5 {[%emt 0:00:30]} (46... Rh6 $17) 47. Nxh3 {[%emt 0:02:09]} (47. gxf5+ $11 Kxf5 48. g4+ Kf6 49. Ne4+ Ke7 50. Kxh3) 47... Kf6 $15 {[%emt 0:03:30] Threatens to win with ...Re2+.} 48. Rf4 $2 {[%emt 0:02:10]} (48. Nf4 $15 Rh6+ 49. Kg2) 48... Re5 $2 {[%emt 0:01:10]} (48... Kg7 $19 49. Rxf5 Re2+ 50. Kg1 Rd6 51. Rg5+ Kf7 52. Rf5+ Ke7) 49. Kg2 $2 {[%emt 0:00:43] [#]} (49. Rxf5+ $1 $11 Rxf5 50. gxf5 Kxf5 51. g4+ Kf6 52. Nf4 Rh6+ 53. Kg3) 49... Re2+ $1 $19 {[%emt 0:02:50]} 50. Kf1 {[%emt 0:00:30]} Rxb2 {[%emt 0:00:30][%cal Of6g7]} 51. Rxf5+ {[%emt 0:00:00]} Kg7 {[%emt 0:00:00][%cal Og6h6] White must now prevent ...Rh6!} 52. Re5 $2 {[%emt 0:00:55]} (52. Nf4 $17 {is a better chance.} Rd6 53. Rg5+ Kh7 54. Rh5+ Kg8 55. Rg5+ Kh7 56. Rh5+ Rh6 57. Rxh6+ Kxh6 58. Ne6) 52... Rh6 {[%emt 0:00:59]} 53. Nf2 {[%emt 0:00:43]} Rh2 $2 {[%emt 0:00:47]} (53... Rxa2 {And now ...Rh2 would win.} 54. Kg1 Rd6) 54. Re2 {[%emt 0:00:01]} Rb1+ {[%emt 0:00:51]} 55. Re1 {[%emt 0:00:30]} Rxe1+ {[%emt 0:00:30]} 56. Kxe1 {[%emt 0:00:00] KR-KN} Rg2 {[%emt 0:00:06]} 57. Ke2 {[%emt 0:00:40]} Rxg3 {[%emt 0:00:28]} 58. Ke3 $2 {[%emt 0:00:25]} (58. c4) 58... Rg1 {[%emt 0:00:30]} 59. Nd3 {[%emt 0:00:00]} Ra1 {[%emt 0:00:32]} 60. Nb4 {[%emt 0:00:22]} c5 {[%emt 0:00:30]} 61. Nd5 {[%emt 0:00:30]} Rxa2 {[%emt 0:00:30]} 62. f4 {[%emt 0:00:00]} Ra4 {[%emt 0:00:00] Strongly threatening ...Kf7.} 63. g5 {[%emt 0:00:00]} Kg6 {[%emt 0:00:20]} 64. Ne7+ {[%emt 0:00:00]} Kf7 {[%emt 0:00:52]} 65. Nd5 $2 {[%emt 0:00:00]} (65. Nc8) 65... Ke6 {[%emt 0:00:50]} 66. Nc7+ {[%emt 0:01:24]} Kf5 {[%emt 0:01:37]} 67. Nd5 {[%emt 0:00:05]} b5 {[%emt 0:00:59]} 68. Ne7+ {[%emt 0:01:28]} Ke6 {[%emt 0:01:00]} 69. Nc6 {[%emt 0:00:01]} a5 {[%emt 0:00:47]} 70. Nd8+ {[%emt 0:02:02]} Kf5 {[%emt 0:00:42]} 71. Nb7 {[%emt 0:00:30]} Re4+ {[%emt 0:00:21]} 72. Kd3 {[%emt 0:00:00]} c4+ {[%emt 0:00:30] Black mates.} 73. Kd2 {[%emt 0:00:00]} Kxf4 {[%emt 0:00:51]} 74. g6 {[%emt 0:00:00]} Re6 {[%emt 0:00:27]} 75. g7 {[%emt 0:00:53]} Rg6 {[%emt 0:00:08]} 76. Nc5 {[%emt 0:01:34]} Kf5 {[%emt 0:01:05]} ({Inferior is} 76... Rxg7 77. Ne6+ Ke4 78. Nxg7 $11) 77. Nb7 {[%emt 0:00:59]} Rxg7 {[%emt 0:00:40]} 78. Nd6+ {[%emt 0:00:30]} Kf4 {[%emt 0:00:30]} 79. Nxb5 {[%emt 0:00:00]} Rg2+ {[%emt 0:00:21]} 80. Kc1 {[%emt 0:00:02]} Ke3 {[%emt 0:00:13]} 81. Kb1 {[%emt 0:00:09]} Kd3 {[%emt 0:00:30]} 82. Ka1 {[%emt 0:00:00]} Rc2 {[%emt 0:00:29]} 83. Na3 {[%emt 0:00:23]} Kxc3 {[%emt 0:00:24]} 84. Nb5+ {[%emt 0:00:07]} Kb4 {[%emt 0:00:46]} 85. Nd4 {[%emt 0:00:03]} Rh2 {[%emt 0:00:50]} 86. Kb1 {[%emt 0:00:30]} a4 {[%emt 0:00:30]} 87. Nc2+ {[%emt 0:00:30] [#]} Rxc2 $1 {[%emt 0:00:30]} 88. Kxc2 {[%emt 0:00:30]} a3 {[%emt 0:00:00]} 89. Kc1 {[%emt 0:00:00]} Kc3 {[%emt 0:00:00]} 90. Kb1 {[%emt 0:00:00]} a2+ {[%emt 0:00:00]} 91. Kxa2 {[%emt 0:00:00]} Kd2 {[%emt 0:00:00] Quite a comeback for Black.   Weighted Error Value: White=0.54/Black=0.34} 0-1

[Event "TUR-ch U13-18 Open 2023"]
[Site "Antalya"]
[Date "2023.01.23"]
[Round "2"]
[White "Sozat, Arda"]
[Black "Deniz, Yagiz Efe"]
[Result "0-1"]
[ECO "B51"]
[WhiteElo "1877"]
[BlackElo "1449"]
[Annotator "NA RC COMBH"]
[PlyCount "104"]
[EventDate "2023.01.17"]
[EventType "swiss"]
[EventCountry "TUR"]
[SourceTitle "playchess.com"]
[Source "ChessBase"]
[SourceQuality "1"]
[TimeControl "5400+30"]

1. e4 {[%emt 0:01:00]} c5 {[%emt 0:01:00]} 2. Nf3 {[%emt 0:00:30]} d6 {[%emt 0:00:30]} 3. Bb5+ {[%emt 0:00:30]} Nd7 {[%emt 0:00:30]} 4. d4 {[%emt 0:00:30]} cxd4 {[%emt 0:00:30]} 5. Qxd4 {[%emt 0:00:30]} a6 {[%emt 0:00:30]} 6. Bxd7+ {[%emt 0:00:30]} Bxd7 {[%emt 0:00:30]} 7. Nc3 {[%emt 0:00:30]} e5 {[%emt 0:00:30]} 8. Qd3 {[%emt 0:00:30]} Nf6 {[%emt 0:00:30]} 9. O-O {[%emt 0:00:30]} h6 {[%emt 0:00:30]} 10. Rd1 {[%emt 0:00:30]} Be7 {[%emt 0:00:30]} 11. Nd2 {[%emt 0:00:30]} b5 {[%emt 0:26:30]} 12. Nf1 {[%emt 0:08:30]} b4 {[%emt 0:07:30]} 13. Nd5 {[%emt 0:00:30]} Bb5 {[%emt 0:05:30]} (13... Nxd5 $11 14. Qxd5 O-O) 14. Nxf6+ {[%emt 0:01:30]} gxf6 {[%emt 0:01:30]} (14... Bxf6 $14 15. Qb3 (15. Qxd6 Qxd6 16. Rxd6 O-O $14) 15... Be2) 15. Qg3 {[%emt 0:00:30]} Be2 {[%emt 0:02:30]} 16. Rd2 {[%emt 0:04:30]} Bxf1 {[%emt 0:00:30]} 17. Kxf1 {[%emt 0:00:30]} Qc7 {[%emt 0:00:30]} 18. Qb3 {[%emt 0:15:30]} ({White should play} 18. Qd3) 18... Qb7 {[%emt 0:05:30]} 19. Rd5 {[%emt 0:04:30]} Rc8 {[%emt 0:18:30]} 20. Bd2 {[%emt 0:02:30]} a5 {[%emt 0:15:05]} (20... Qc6 $16 21. Bxb4 Qxc2) 21. c3 {[%emt 0:23:30]} ({White should try} 21. c4 $18) 21... f5 {[%emt 0:00:30]} (21... Qa6+ $16 {was worth a try.} 22. Kg1 bxc3) 22. cxb4 {[%emt 0:02:30]} axb4 {[%emt 0:03:11]} 23. Qxb4 {[%emt 0:02:30]} ({Much less strong is} 23. Bxb4 fxe4 24. Rad1 (24. Bxd6 Qa6+ 25. Kg1 Bxd6 $17) 24... Rc6 $16) (23. exf5 $18 Rc5 24. Rxc5 (24. Qxb4 $2 {too greedy.} Qxd5 25. Kg1 Kd7 $19) 24... dxc5 25. a3) 23... Qa6+ {[%emt 0:04:58]} (23... Qxb4 $16 24. Bxb4 fxe4) 24. Kg1 {[%emt 0:00:30]} fxe4 {[%emt 0:00:58]} 25. Qxe4 {[%emt 0:00:00]} Qc6 {[%emt 0:01:34]} 26. Bb4 {[%emt 0:00:00]} Qd7 {[%emt 0:00:30]} 27. h3 {[%emt 0:00:30]} Rg8 {[%emt 0:02:34]} 28. Qd3 {[%emt 0:11:24]} Rg6 {[%emt 0:00:30]} 29. Rd1 {[%emt 0:00:30]} Rc6 {[%emt 0:00:30]} 30. Rxe5 {[%emt 0:00:30]} Qb7 {[%emt 0:00:30]} 31. Rb5 {[%emt 0:00:30]} Rb6 {[%emt 0:00:30]} 32. Rd5 {[%emt 0:00:30]} Rxb4 {[%emt 0:00:30]} 33. b3 {[%emt 0:00:30]} Kf8 {[%emt 0:00:00]} 34. Qc3 {[%emt 0:04:54]} Bf6 {[%emt 0:00:00]} 35. Qe3 {[%emt 0:00:30]} Be5 {[%emt 0:00:00]} 36. f3 {[%emt 0:00:30]} Re6 {[%emt 0:00:00]} 37. Qd3 {[%emt 0:00:30]} Qb6+ {[%emt 0:00:00]} 38. Kh1 {[%emt 0:00:30]} Rg6 {[%emt 0:00:01]} 39. Qc2 {[%emt 0:00:30]} Kg7 {[%emt 0:00:30]} 40. R1d3 $19 {[%emt 0:00:30]} (40. Qe2) 40... Rh4 {[%emt 0:00:30]} 41. Rd1 {[%emt 0:00:30]} Qe3 {[%emt 0:00:30]} 42. Qc8 {[%emt 0:00:30]} Qf2 {[%emt 0:00:30]} 43. R5d2 {[%emt 0:00:30]} Qg3 {[%emt 0:00:30]} 44. Kg1 {[%emt 0:00:30]} Rxh3 {[%emt 0:00:30]} 45. Kf1 {[%emt 0:00:30]} Rh1+ {[%emt 0:00:30]} 46. Ke2 {[%emt 0:00:30]} Qxg2+ {[%emt 0:00:30]} 47. Kd3 {[%emt 0:00:30]} Qxf3+ {[%emt 0:00:30]} 48. Kc2 {[%emt 0:00:30]} Rxd1 {[%emt 0:00:30]} 49. Rxd1 {[%emt 0:00:30]} Rg2+ {[%emt 0:00:30]} 50. Rd2 {[%emt 0:00:30]} Qe4+ {[%emt 0:00:30]} 51. Kc1 {[%emt 0:00:30]} Qe1+ {[%emt 0:00:30]} 52. Kc2 {[%emt 0:00:30]} Rxd2# {[%emt 0:00:30]} 0-1

[Event "TUR-ch U13-18 Open 2023"]
[Site "Antalya"]
[Date "2023.01.23"]
[Round "2"]
[White "Gungor, Cihan Akif"]
[Black "Pirpir, Ozgur Can"]
[Result "1-0"]
[ECO "C54"]
[WhiteElo "1871"]
[BlackElo "1340"]
[Annotator "NA RC COMBH"]
[PlyCount "57"]
[EventDate "2023.01.17"]
[EventType "swiss"]
[EventCountry "TUR"]
[SourceTitle "playchess.com"]
[Source "ChessBase"]
[SourceQuality "1"]
[TimeControl "5400+30"]

{[%evp 20,47,9,-4,0,-19,-30,-79,-27,-100,0,-72,-63,-78,77,51,64,-42,338,32767,-122,-228,-88,-370,-412,-370,293,278,318,367]} 1. e4 {[%emt 0:01:00]} e5 {[%emt 0:01:00]} 2. Nf3 {[%emt 0:00:00]} Nc6 {[%emt 0:00:00]} 3. Bc4 {[%emt 0:00:00]} Nf6 {[%emt 0:00:00]} 4. d3 {[%emt 0:00:30]} Bc5 {[%emt 0:00:30]} 5. c3 {[%emt 0:00:00]} d6 {[%emt 0:00:00]} 6. Nbd2 {[%emt 0:00:00]} O-O {[%emt 0:00:00]} 7. h3 {[%emt 0:00:00]} a5 {[%emt 0:00:00] is more profitable than 7...a6 at the moment.} 8. Nf1 {[%emt 0:00:00]} Be6 {[%emt 0:00:00]} 9. Qe2 {[%emt 0:01:30]} h6 {[%emt 0:05:30] [#]} 10. Ng3 $146 {[%emt 0:00:30]} ({Predecessor:} 10. Bxe6 fxe6 11. Be3 b6 12. a3 Bxe3 13. Nxe3 Nh5 14. g3 Qf6 15. Nd2 Qg6 16. Qg4 {0-1 Bagrationi,A (2500)-Muha,S (2222) Titled Tuesday intern op 6th Aug blitz 2019 (10)}) 10... Ne7 {[%emt 0:10:30]} 11. Nh4 {[%emt 0:00:30]} a4 {[%emt 0:07:30]} 12. a3 {[%emt 0:08:30]} d5 {[%emt 0:19:30]} 13. Ba2 {[%emt 0:02:30]} (13. exd5 $15 Nexd5 14. O-O) 13... Qd7 {[%emt 0:13:30]} ({Black should play} 13... dxe4 $17 14. Nxe4 Nxe4 15. dxe4 Bxa2 16. Rxa2 Qd6) 14. Qf3 {[%emt 0:02:30]} (14. O-O $11) 14... Kh7 {[%emt 0:01:30]} ({Black should play} 14... Rad8 $17 15. O-O dxe4 16. dxe4 Bxa2 17. Rxa2 Qc6) 15. d4 {[%emt 0:12:30]} exd4 {[%emt 0:11:30]} 16. e5 {[%emt 0:06:30]} Ng6 $2 {[%emt 0:14:24]} (16... Ne4 $1 $17 {stays on course.} 17. Nxe4 dxe4 18. Qxe4+ Kg8 19. Bxe6 (19. Bb1 Ng6 $15) 19... fxe6 20. cxd4 Qxd4 21. Qxd4 Bxd4) 17. exf6 {[%emt 0:08:30]} Nxh4 {[%emt 0:01:23]} 18. Bb1+ {[%emt 0:00:30]} ({White should try} 18. Qh5 $1 $14 Nxg2+ 19. Ke2 (19. Kf1 Ne3+ 20. fxe3 g6 $14) 19... d3+ 20. Kf1 Ne3+ 21. fxe3) 18... Kg8 $2 {[%emt 0:03:19]} (18... g6 $1 $15 {stays ahead.} 19. Qh5 Nxg2+ 20. Kd1 Ne3+ 21. fxe3 dxe3) 19. Qd3 {[%emt 0:00:30]} g6 {[%emt 0:01:21]} (19... gxf6 $2 20. Qh7#) (19... Nxg2+ $2 20. Kf1 g6 21. Kxg2 (21. cxd4 $2 {loses.} Bxh3 22. Kg1 Nh4 $19) 21... dxc3 22. Qxc3 $18) 20. cxd4 {[%emt 0:02:30] [#]} (20. O-O $17 {was forced.} Rfe8 21. Qd2) 20... Rfe8 $1 {[%emt 0:01:23]} 21. Ne2 $2 {[%emt 0:08:30] [#]} (21. Kf1 $17 Bb6 22. Bf4) 21... Bf5 $1 {[%emt 0:02:02]} ({Worse is} 21... Nxg2+ 22. Kf1 Bf5 {[%mdl 64] Overworked Piece} 23. Qd2 Bxb1 24. Rxb1 $17 (24. Kxg2 $2 {too greedy.} Be4+ 25. f3 Bxf3+ {[%mdl 64] Decoy} 26. Kxf3 Qf5+ 27. Kg2 Qe4+ 28. Kg1 Bd6 $19) (24. dxc5 Nh4 $17)) 22. Qg3 {[%emt 0:00:30]} Qb5 $4 {[%emt 0:05:33]} (22... Bxd4 23. Qxh4 Qe6 24. O-O Bxf6 25. Qxh6 (25. Bxf5 $2 Qxf5 26. Ng3 Bxh4 $17) 25... Bxb1 26. Nf4 $17) (22... Bxb1 $19 {and life is good for Black.} 23. Rxb1 Nf5) 23. O-O $1 {[%emt 0:00:00]} Qxe2 {[%emt 0:00:59]} 24. Qxh4 $18 {[%emt 0:01:00]} Bf8 {[%emt 0:00:55]} 25. Bxf5 {[%emt 0:00:30]} gxf5 {[%emt 0:00:00]} 26. Bxh6 {[%emt 0:00:30]} Re4 {[%emt 0:00:18]} 27. Qg5+ {[%emt 0:00:00]} Kh7 {[%emt 0:01:00]} 28. Bxf8 {[%emt 0:00:00]} Rxf8 {[%emt 0:00:30]} 29. Qg7# {[%emt 0:00:00]} 1-0

[Event "TUR-ch U13-18 Open 2023"]
[Site "Antalya"]
[Date "2023.01.23"]
[Round "2"]
[White "Dirikolu, Deniz"]
[Black "Guzel, Eren"]
[Result "1-0"]
[ECO "C85"]
[WhiteElo "1868"]
[BlackElo "1463"]
[Annotator "NA RC COMBH"]
[PlyCount "99"]
[EventDate "2023.01.17"]
[EventType "swiss"]
[EventCountry "TUR"]
[SourceTitle "playchess.com"]
[Source "ChessBase"]
[SourceQuality "1"]
[TimeControl "5400+30"]

{[%evp 14,95,18,17,32767,20,27,17,32767,6,16,20,28,40,43,32,107,36,112,126,93,128,235,252,262,212,218,225,274,160,155,158,163,175,169,144,167,32767,168,168,172,164,160,150,216,160,170,32767,32767,32767,32767,163,180,185,224,212,230,156,32767,32767,32767,32767,32767,32767,32767,420,392,32767,32767,32767,32767,32767,32767,32767,32767,32767,32767,985,32767,32767,6327,12397,29985,29988]} 1. e4 {[%emt 0:01:00]} e5 {[%emt 0:01:00]} 2. Nf3 {[%emt 0:00:30]} Nc6 {[%emt 0:00:30]} 3. Bb5 {[%emt 0:00:30]} a6 {[%emt 0:00:30]} 4. Ba4 {[%emt 0:00:00]} Nf6 {[%emt 0:00:00]} 5. O-O {[%emt 0:00:00]} Be7 {[%emt 0:00:00]} 6. Bxc6 {[%emt 0:00:00]} dxc6 {[%emt 0:00:30]} 7. d3 {[%emt 0:00:00]} Bd6 {[%emt 0:07:30]} 8. Nbd2 {[%emt 0:02:30]} O-O {[%emt 0:05:30]} 9. Nc4 {[%emt 0:00:30]} Nd7 {[%emt 0:08:30]} 10. b3 {[%emt 0:04:30]} f6 {[%emt 0:06:30]} 11. Bb2 {[%emt 0:03:30]} Nb6 {[%emt 0:01:30]} 12. Ne3 {[%emt 0:00:30]} Be6 {[%emt 0:01:30]} 13. d4 {[%emt 0:00:30]} exd4 {[%emt 0:03:30]} 14. Nxd4 {[%emt 0:00:30]} Bf7 {[%emt 0:07:30]} (14... Qe8 $14) 15. Qf3 {[%emt 0:03:30]} (15. Nef5 $16) 15... Be5 {[%emt 0:05:30] [#]} (15... Qe8 $14) 16. Rad1 $1 {[%emt 0:02:30]} Qe8 {[%emt 0:01:30]} 17. Ba3 {[%emt 0:11:30]} Bxd4 {[%emt 0:07:30]} 18. Rxd4 {[%emt 0:00:00]} Qe5 {[%emt 0:00:30]} 19. Bxf8 {[%emt 0:00:00]} Qxd4 {[%emt 0:03:30] [#]} 20. Bxg7 $1 {[%emt 0:00:30] Decoy} Bg6 {[%emt 0:03:30]} 21. Rd1 {[%emt 0:04:30]} ({Less strong is} 21. Qxf6 Qxf6 22. Bxf6 Bxe4 $16) (21. Bxf6 $18 {and White stays clearly on top.} Qxe4 22. Qg3) 21... Qxe4 {[%emt 0:06:30]} 22. Qxf6 {[%emt 0:00:30]} ({Don't take} 22. Bxf6 $6 Qxf3 23. gxf3 Rf8 $14) 22... Re8 {[%emt 0:01:30]} 23. Bh8 {[%emt 0:14:30]} Qe7 {[%emt 0:02:30]} 24. Qa1 {[%emt 0:00:00]} h5 {[%emt 0:06:15]} 25. c4 {[%emt 0:02:00]} Nd7 {[%emt 0:05:12]} 26. Bc3 {[%emt 0:00:30]} Qe6 {[%emt 0:02:45]} (26... Nc5 $16 {might work better.} 27. Bb4 Nxb3) 27. Re1 {[%emt 0:01:30]} Qf7 {[%emt 0:07:05]} 28. Nf1 {[%emt 0:00:30]} Rf8 {[%emt 0:01:15]} (28... Nc5 $16 29. Rxe8+ Qxe8) 29. f3 {[%emt 0:01:30]} Nc5 {[%emt 0:02:35]} 30. Bb4 {[%emt 0:00:30]} Nd3 {[%emt 0:00:48]} 31. Bxf8 {[%emt 0:00:30]} Nxe1 {[%emt 0:00:00]} 32. Qxe1 {[%emt 0:00:00]} Kxf8 {[%emt 0:00:44]} 33. Qe5 {[%emt 0:00:00]} Qe7 {[%emt 0:00:36]} (33... Qd7 {might work better.} 34. Qf6+ Qf7 35. Qd8+ Kg7) 34. Qxe7+ {[%emt 0:00:30]} Kxe7 {[%emt 0:00:02]} 35. g4 {[%emt 0:00:30]} hxg4 {[%emt 0:02:27]} 36. fxg4 {[%emt 0:00:30]} Kf6 {[%emt 0:00:30]} 37. Kf2 {[%emt 0:00:00]} c5 {[%emt 0:00:43]} 38. h4 {[%emt 0:00:00]} b5 {[%emt 0:00:33]} 39. Nd2 {[%emt 0:00:00]} c6 {[%emt 0:00:56]} 40. Ke3 {[%emt 0:01:00]} Ke5 {[%emt 0:00:30]} 41. h5 {[%emt 0:00:00]} Bf7 {[%emt 0:00:45]} 42. Nf3+ {[%emt 0:00:00]} Kf6 {[%emt 0:00:00]} 43. Nd2 {[%emt 0:02:30]} Kg5 {[%emt 0:00:19]} 44. Nf3+ {[%emt 0:01:30]} Kf6 {[%emt 0:00:54]} 45. h6 {[%emt 0:01:30]} Bg8 {[%emt 0:00:40]} 46. Kf4 {[%emt 0:00:30]} bxc4 {[%emt 0:00:19]} 47. bxc4 $18 {[%emt 0:00:30]} (47. g5+ $142 Kg6 48. Ne5+ Kh7 49. Nxc4 a5 50. Nxa5 Bf7 51. Kf5 c4 52. Nxc4) 47... Bxc4 {[%emt 0:00:30]} 48. g5+ {[%emt 0:00:00]} Kg6 {[%emt 0:00:35]} 49. Ne5+ {[%emt 0:00:00]} Kh7 {[%emt 0:00:30]} 50. Nxc4 {[%emt 0:00:30]} 1-0